bitfinex-derivatives/quotes_SOLF0:USTF0_20251020
["timestamp","ask_amount","ask_price","bid_price","bid_amount"]
[1760923822316,4.09910705,185.82,185.75,2.87]
[1760923823319,4.09803541,185.82,185.75,2.87]
[1760923825723,6.2418,185.83,185.75,2.87]
[1760923826221,4.09702718,185.84,185.76,2.87]
[1760923827220,8.93802718,185.85,185.76,2.87]
[1760923828424,4.09702718,185.84,185.76,2.87]
[1760923829025,1.4,185.82,185.76,2.87]
[1760923829926,4.09621414,185.84,185.76,2.87]
[1760923830927,4.09621414,185.83,185.76,2.87]
[1760923831128,1.4,185.84,185.76,2.87]
[1760923831326,4.0972615,185.83,185.76,2.87]
[1760923831521,4.66319186,185.84,185.76,2.87]
[1760923831723,4.8418,185.82,185.76,2.87]
[1760923831924,6.2418,185.82,185.76,2.87]
[1760923833023,10.33987314,185.82,185.76,2.87]
[1760923833223,6.2418,185.82,185.76,2.87]
[1760923834428,10.34056235,185.82,185.76,2.87]
[1760923834628,6.2418,185.82,185.76,2.87]
[1760923835928,4.09934781,185.83,185.76,2.87]
[1760923836125,4.0991227,185.85,185.76,2.87]
[1760923836327,1.4,185.86,185.76,2.87]
[1760923836623,6.16783828,185.89,185.76,2.87]
[1760923836928,4.09877111,185.88,185.76,2.87]
[1760923837130,4.09877111,185.87,185.79,2.87]
[1760923837327,4.09877111,185.86,185.79,2.87]
[1760923837527,6.16783828,185.89,185.79,2.87]
[1760923837728,8.93955067,185.88,185.79,2.87]
[1760923837924,4.09915067,185.87,185.79,2.87]
[1760923838124,4.09915067,185.86,185.79,2.87]
[1760923838325,4.8404,185.88,185.79,2.87]
[1760923838522,4.09960579,185.87,185.79,2.87]
[1760923838723,4.09960579,185.86,185.83,2.87]
[1760923839026,4.09928264,185.88,185.82,2.87]
[1760923839226,4.09928264,185.88,185.81,4.842]
[1760923839227,4.09928264,185.87,185.83,2.87]
[1760923839422,1.4,185.89,185.82,2.87]
[1760923839726,1.4,185.92,185.82,2.87]
[1760923839926,4.09837866,185.91,185.82,2.87]
[1760923840231,4.09871907,185.9,185.85,2.87]
[1760923840534,4.09871907,185.91,185.85,2.87]
[1760923840830,6.17954805,185.9,185.75,110.58021584]
[1760923841027,3.48256635,185.87,185.78,2.87]
[1760923842032,4.84978012,185.9,185.78,2.87]
[1760923842033,2.08256635,185.85,185.78,2.87]
[1760923843232,2.08256635,185.85,185.79,2.87]
[1760923843628,1.4,185.86,185.79,2.87]
[1760923844131,3.48256635,185.86,185.8,2.87]
[1760923844332,5.49710893,185.89,185.8,2.87]
[1760923844533,2.08256635,185.9,185.81,2.08256635]
[1760923844835,6.2392,185.92,185.82,2.87]
[1760923845031,4.09617668,185.91,185.82,2.87]
[1760923845231,6.2392,185.92,185.82,2.87]
[1760923845431,4.0658047,185.91,185.84,2.87]
[1760923845632,6.2392,185.92,185.84,2.87]
[1760923845932,4.0658047,185.91,185.84,2.87]
[1760923846135,4.06580488,185.9,185.84,2.87]
[1760923846336,4.06580488,185.91,185.84,2.87]
[1760923846635,4.06580488,185.9,185.84,2.87]
[1760923846832,6.92226635,185.91,185.84,2.87]
[1760923847033,2.08256635,185.91,185.84,2.87]
[1760923847634,10.994044,185.94,185.86,2.76]
[1760923847933,3.48256635,185.96,185.89,2.76]
[1760923848139,4.06427551,185.95,185.89,2.76]
[1760923849537,6.14684186,185.98,185.89,2.76]
[1760923849733,4.06427551,185.97,185.89,7.5997]
[1760923850036,6.14684186,185.98,185.89,7.5997]
[1760923850237,4.06427551,185.98,185.91,4.8394]
[1760923850436,4.06427551,185.98,185.92,2.76]
[1760923850734,5.46427551,185.99,185.92,2.76]
[1760923851234,1.4,185.99,185.92,2.76]
[1760923851634,1.4,185.99,185.93,4.8389]
[1760923852033,9.66699302,186.1,185.94,1.08]
[1760923852233,6.62067136,186.17,186.01,16.13]
[1760923852533,2.75,186.19,186.08,2.76]
[1760923852734,2.75,186.19,186.09,38.74]
[1760923852936,15.90547899,186.22,186.03,2.76]
[1760923853242,7.5825,186.18,186.03,2.76]
[1760923853740,2.75,186.18,186.03,2.76]
[1760923854241,2.75,186.18,186.06,5.29866872]
[1760923854445,2.75,186.18,186.07,2.76]
[1760923855041,2.75,186.18,186.08,4.8349]
[1760923855240,2.75,186.18,186.09,2.76]
[1760923855634,2.75,186.24,186.09,2.76]
[1760923856537,11.06443735,186.25,186.1,17.1]
[1760923856743,2.75,186.24,186.1,17.1]
[1760923857037,11.06443735,186.25,186.1,27.1145]
[1760923857038,2.75,186.22,186.1,27.1145]
[1760923857238,2.75,186.26,186.11,2.76]
[1760923857539,0.9347175,186.32,186.18,5.29866872]
[1760923857734,0.9347175,186.32,186.14,5.29866872]
[1760923857735,2.75,186.31,186.19,2.76]
[1760923858638,0.9347175,186.32,186.14,7.5934]
[1760923858843,2.75,186.27,186.14,2.76]
[1760923859339,2.75,186.23,186.1,25.04]
[1760923859535,2.75,186.22,186.1,25.04]
[1760923859740,5.29866872,186.2,186.1,25.04]
[1760923859940,2.75,186.19,186.1,25.04]
[1760923860337,2.75,186.19,186.1,2.76]
[1760923860539,2.75,186.19,186.02,109.54064069]
[1760923860844,2.75,186.19,186.03,2.76]
[1760923861141,2.75,186.19,186.06,4.8354]
[1760923861444,2.75,186.19,186.07,2.76]
[1760923862040,7.5823,186.19,186.07,2.76]
[1760923862447,2.75,186.15,186.07,2.76]
[1760923864040,11.91934008,186.28,186.09,2.76]
[1760923864238,4.12425828,186.27,186.12,5.29866872]
[1760923864436,4.12425828,186.28,186.14,2.76]
[1760923864643,2.75,186.27,186.15,4.8332]
[1760923865142,2.75,186.27,186.16,2.76]
[1760923865535,6.87425828,186.27,186.16,2.76]
[1760923865740,2.75,186.27,186.16,2.76]
[1760923865936,2.75,186.27,186.17,4.8327]
[1760923866241,2.75,186.3,186.18,2.76]
[1760923866744,4.12425828,186.29,186.18,2.76]
[1760923866940,6.87425828,186.28,186.18,2.76]
[1760923867140,2.75,186.28,186.18,2.76]
[1760923867946,2.75,186.26,186.14,8.05866872]
[1760923870740,2.75,186.26,186.14,5.29866872]
[1760923871047,2.75,186.26,186.16,2.76]
[1760923871744,2.75,186.26,186.17,4.8326]
[1760923873838,4.12425828,186.28,186.18,2.72]
[1760923874038,8.95395828,186.29,186.18,2.72]
[1760923874743,4.12425828,186.29,186.19,4.8322]
[1760923874946,2.62,186.3,186.19,4.8322]
[1760923875147,2.62,186.3,186.2,2.72]
[1760923876753,7.4494,186.3,186.2,2.72]
[1760923877048,2.62,186.28,186.12,2.72]
[1760923877245,2.62,186.26,186.12,2.72]
[1760923877552,11.57465828,186.26,186.13,4.8337]
[1760923877845,4.12425828,186.25,186.14,2.74]
[1760923878048,2.62,186.24,186.14,2.74]
[1760923879040,2.62,186.24,186.15,4.8332]
[1760923879448,6.74425828,186.24,186.15,4.8332]
[1760923879752,2.62,186.24,186.15,4.8332]
[1760923879953,6.74425828,186.24,186.15,4.8332]
[1760923880252,7.4509,186.24,186.14,2.74]
[1760923880455,2.62,186.22,186.14,2.74]
[1760923881350,2.62,186.22,186.14,7.5735]
[1760923881950,4.12475409,186.25,186.17,2.74]
[1760923882153,4.12475409,186.24,186.17,2.74]
[1760923882355,7.43230521,186.27,186.17,2.74]
[1760923882553,4.12703302,186.26,186.17,2.74]
[1760923882750,4.12703302,186.25,186.17,2.74]
[1760923882946,4.12703302,186.24,186.17,2.74]
[1760923883150,7.43230521,186.27,186.17,2.74]
[1760923883352,4.12703137,186.26,186.17,2.74]
[1760923883552,4.12703137,186.25,186.17,7.5724]
[1760923883755,2.62,186.27,186.17,7.5724]
[1760923883955,4.12984624,186.26,186.17,7.5724]
[1760923884149,4.12984624,186.25,186.17,7.5724]
[1760923884456,4.12984624,186.24,186.17,7.5724]
[1760923884656,4.12984624,186.23,186.17,7.5724]
[1760923884957,7.44114796,186.27,186.17,7.5724]
[1760923885161,4.13282683,186.26,186.17,7.5724]
[1760923885356,2.62,186.24,186.17,2.74]
[1760923885557,4.13282683,186.23,186.13,2.74]
[1760923885751,6.75282683,186.22,186.13,2.74]
[1760923885959,4.13282683,186.21,186.13,2.74]
[1760923886155,4.13282683,186.2,186.13,2.74]
[1760923886351,4.13988837,186.19,186.13,2.74]
[1760923886560,2.62,186.22,186.13,2.74]
[1760923886761,4.13981939,186.21,186.13,2.74]
[1760923886956,4.13981939,186.2,186.13,7.5737]
[1760923887161,4.13981939,186.19,186.13,7.5737]
[1760923887362,4.14465594,186.18,186.13,4.8337]
[1760923887566,2.62,186.22,186.13,7.5737]
[1760923887759,4.14465649,186.21,186.13,7.5737]
[1760923887963,4.14465649,186.2,186.13,7.5737]
[1760923888264,4.14465649,186.19,186.13,7.5737]
[1760923888560,4.14465649,186.18,186.14,2.74]
[1760923888763,2.62,186.22,186.15,2.74]
[1760923888953,4.14999331,186.21,186.15,2.74]
[1760923889155,6.76999331,186.2,186.15,2.74]
[1760923889358,4.14999331,186.19,186.15,2.74]
[1760923889559,4.14999331,186.18,186.15,2.74]
[1760923889765,4.14999331,186.17,186.15,2.74]
[1760923889961,2.62,186.2,186.15,2.74]
[1760923890163,4.1556867,186.19,186.15,2.74]
[1760923890464,4.16122831,186.18,186.15,2.74]
[1760923890658,4.16122831,186.17,186.15,2.74]
[1760923890858,4.16122831,186.16,186.15,2.74]
[1760923891064,2.62,186.2,186.15,2.74]
[1760923891264,4.16118652,186.19,186.15,2.74]
[1760923891463,4.16118652,186.18,186.15,2.74]
[1760923891765,4.16118652,186.17,186.15,2.74]
[1760923891954,4.16118652,186.16,186.15,2.74]
[1760923893363,4.16118652,186.16,186.14,4.8332]
[1760923893570,4.16118652,186.15,186.14,7.5732]
[1760923894978,4.16118652,186.15,186.12,4.834]
[1760923895173,4.16118652,186.14,186.07,118.54106782]
[1760923895379,4.16118652,186.13,186.07,107.56106782]
[1760923895582,4.16118652,186.12,186.08,45.64]
[1760923895768,4.16118652,186.11,186.07,107.56106782]
[1760923895971,4.16118652,186.1,186.08,45.64]
[1760923896167,4.16118652,186.09,186.08,45.64]
[1760923896367,4.16118652,186.09,186.08,48.38]
[1760923897278,4.16118652,186.09,186.08,53.215]
[1760923898083,8.652e-05,186.09,186.08,53.215]
[1760923901982,9.24067136,186.16,186.1,4.8344]
[1760923901983,2.62,186.16,186.1,4.8344]
[1760923904881,2.62,186.16,186.1,7.5744]
[1760923906386,2.62,186.16,186.11,4.8341]
[1760923906584,2.62,186.16,186.11,7.5741]
[1760923908490,2.84,186.18,186.11,7.5741]
[1760923910191,4.12624983,186.17,186.11,7.5741]
[1760923910489,2.84,186.15,186.11,7.5741]
[1760923912086,9.69508978,186.19,186.11,4.8341]
[1760923912392,6.96644933,186.18,186.11,7.5641]
[1760923912594,4.12644933,186.17,186.11,7.5641]
[1760923912893,6.96644933,186.16,186.12,2.73]
[1760923913192,2.84,186.16,186.12,2.73]
[1760923916895,4.12612728,186.15,186.13,2.73]
[1760923917089,2.84,186.16,186.13,2.73]
[1760923918593,4.12652982,186.15,186.13,2.73]
[1760923918795,2.84,186.16,186.13,2.73]
[1760923918996,4.12652982,186.15,186.13,2.73]
[1760923919197,2.84,186.16,186.13,2.73]
[1760923919397,4.12652982,186.15,186.13,2.73]
[1760923919597,2.84,186.16,186.13,2.73]
[1760923919797,4.12699571,186.15,186.13,2.73]
[1760923920001,2.84,186.16,186.13,2.73]
[1760923920295,4.12699571,186.15,186.13,2.73]
[1760923920495,7.84938509,186.19,186.13,2.73]
[1760923920692,6.96810366,186.18,186.14,2.73]
[1760923920892,4.12810366,186.17,186.14,2.73]
[1760923921092,4.12810366,186.16,186.14,2.73]
[1760923921294,7.84938509,186.21,186.14,2.73]
[1760923921493,4.12896452,186.2,186.14,2.73]
[1760923921693,4.12896452,186.19,186.14,2.73]
[1760923921995,5.00938509,186.23,186.14,2.73]
[1760923922191,4.11636512,186.22,186.14,2.73]
[1760923922390,4.11636512,186.21,186.2,7.5619]
[1760923922796,5.00938509,186.26,186.19,2.73]
[1760923923100,2.84,186.29,186.19,2.73]
[1760923923101,4.11558355,186.25,186.19,2.73]
[1760923923297,5.00938509,186.31,186.19,2.73]
[1760923923593,4.11354316,186.3,186.25,4.8304]
[1760923923902,4.11354316,186.29,186.25,7.5604]
[1760923924097,4.11354316,186.28,186.25,7.5604]
[1760923924294,4.11354316,186.27,186.26,2.73]
[1760923924498,5.00938509,186.33,186.28,2.73]
[1760923924703,6.95124529,186.32,186.28,2.73]
[1760923924902,2.84,186.3,186.27,4.83]
[1760923925198,4.11124529,186.29,186.27,4.83]
[1760923925394,7.84938509,186.33,186.27,4.83]
[1760923925600,4.1085849,186.32,186.27,7.56]
[1760923925799,6.9485849,186.31,186.27,7.56]
[1760923926000,4.1085849,186.3,186.27,7.56]
[1760923926202,2.84,186.31,186.27,7.56]
[1760923926403,4.10631984,186.3,186.27,7.56]
[1760923926598,2.84,186.31,186.27,7.56]
[1760923926797,4.10592533,186.3,186.27,7.56]
[1760923927000,2.84,186.31,186.27,7.56]
[1760923927305,2.84,186.33,186.27,7.56]
[1760923927602,2.84,186.31,186.27,7.56]
[1760923927801,2.84,186.31,186.27,2.73]
[1760923929110,2.84,186.29,186.22,45.34]
[1760923929493,5.00938509,186.33,186.22,45.34]
[1760923929700,4.66894457,186.34,186.22,45.34]
[1760923929701,2.84,186.31,186.22,45.34]
[1760923929897,2.84,186.29,186.22,45.34]
[1760923930104,2.84,186.27,186.22,45.34]
[1760923930400,2.84,186.3,186.22,52.9013]
[1760923930601,2.84,186.28,186.22,45.34]
[1760923930793,2.84,186.31,186.23,2.73]
[1760923931106,2.84,186.31,186.23,5.96950801]
[1760923931499,2.84,186.35,186.27,2.73]
[1760923931700,4.09875979,186.34,186.27,2.73]
[1760923931894,4.09875979,186.33,186.27,7.5601]
[1760923932098,4.09875979,186.32,186.28,2.86]
[1760923932300,2.84,186.35,186.28,2.86]
[1760923932499,4.09695495,186.34,186.28,2.86]
[1760923932701,4.09695495,186.34,186.27,4.8301]
[1760923932702,2.84,186.35,186.3,2.86]
[1760923932904,6.78637952,186.34,186.3,2.86]
[1760923933213,2.69,186.34,186.3,2.86]
[1760923933510,2.69,186.35,186.27,4.8301]
[1760923933810,4.09464093,186.34,186.27,4.8301]
[1760923934008,2.69,186.35,186.27,4.8301]
[1760923934305,4.09450017,186.34,186.27,4.8301]
[1760923934901,2.69,186.32,186.24,8.07030801]
[1760923935104,4.8279,186.36,186.23,6.09950801]
[1760923935105,2.69,186.31,186.23,6.09950801]
[1760923935300,2.69,186.31,186.23,10.93060801]
[1760923936006,2.69,186.31,186.26,2.86]
[1760923936207,2.69,186.31,186.27,2.86]
[1760923937509,2.64,186.33,186.23,3.23950801]
[1760923937709,4.09307318,186.32,186.12,3.23950801]
[1760923937913,2.64,186.3,186.17,6.11950801]
[1760923938117,2.64,186.29,186.19,4.8319]
[1760923938410,2.64,186.29,186.18,45.36]
[1760923938411,2.64,186.29,186.2,6.11950801]
[1760923939008,2.64,186.29,186.2,10.95120801]
[1760923939208,2.64,186.29,186.2,6.11950801]
[1760923939410,4.09307318,186.31,186.21,2.88]
[1760923939611,2.64,186.33,186.21,2.88]
[1760923939914,6.73307318,186.33,186.21,2.88]
[1760923940111,2.64,186.33,186.21,2.88]
[1760923940512,6.73307318,186.33,186.21,2.88]
[1760923940715,8.92137318,186.34,186.21,7.7114]
[1760923940918,2.64,186.32,186.21,7.7114]
[1760923941217,2.64,186.32,186.21,2.88]
[1760923941610,6.73307318,186.32,186.21,2.88]
[1760923942028,6.73307318,186.32,186.24,2.88]
[1760923942223,2.64,186.32,186.24,2.88]
[1760923943015,2.64,186.32,186.25,4.8306]
[1760923945321,6.73682281,186.34,186.24,2.88]
[1760923945515,2.64,186.32,186.23,4.8311]
[1760923945721,2.64,186.31,186.23,4.8311]
[1760923946021,6.73682281,186.32,186.2,2.88]
[1760923946314,6.73682281,186.32,186.21,3.23950801]
[1760923946315,2.64,186.32,186.21,3.23950801]
[1760923946521,6.73682281,186.32,186.22,2.88]
[1760923946716,2.64,186.32,186.22,2.88]
[1760923946917,6.73682281,186.32,186.22,2.88]
[1760923947115,2.64,186.32,186.22,2.88]
[1760923947621,6.73682281,186.32,186.22,2.88]
[1760923947915,2.64,186.3,186.22,2.88]
[1760923948316,2.64,186.3,186.17,2.88]
[1760923948517,2.64,186.28,186.17,2.88]
[1760923949420,4.09682281,186.27,186.17,2.88]
[1760923949621,6.73682281,186.26,186.17,2.88]
[1760923949811,2.64,186.26,186.17,2.88]
[1760923950017,2.64,186.26,186.19,4.8321]
[1760923950413,6.73682281,186.26,186.19,4.8321]
[1760923950722,2.64,186.26,186.19,4.8321]
[1760923950924,6.73682281,186.26,186.19,4.8321]
[1760923951121,2.64,186.26,186.17,2.88]
[1760923951317,6.73682281,186.26,186.17,2.88]
[1760923952319,2.64,186.26,186.17,2.88]
[1760923952722,4.10245505,186.25,186.17,2.88]
[1760923952923,2.64,186.26,186.17,2.88]
[1760923953227,2.64,186.24,186.17,2.88]
[1760923953426,2.64,186.22,186.14,50.1135]
[1760923953723,2.64,186.21,186.14,45.28]
[1760923953920,4.8312,186.23,186.13,2.88]
[1760923954119,2.64,186.18,186.08,2.88]
[1760923954321,5.87950801,186.16,186.08,2.88]
[1760923954519,4.10504142,186.15,186.03,2.88]
[1760923954821,2.64,186.13,186.03,2.88]
[1760923955027,2.64,186.11,186.03,2.88]
[1760923957118,4.8344,186.11,186.01,45.28]
[1760923957324,2.64,186.1,186.02,2.88]
[1760923957927,4.10064631,186.09,186.01,45.28]
[1760923958129,2.64,186.07,186.01,45.28]
[1760923958529,2.64,186.07,185.98,2.88]
[1760923962123,2.64,186.1,185.99,2.88]
[1760923962723,6.72580703,186.1,185.99,2.88]
[1760923962924,2.64,186.1,185.99,2.88]
[1760923963128,6.72580703,186.1,185.99,2.88]
[1760923963324,2.64,186.1,185.99,7.7172]
[1760923963529,2.64,186.1,186.0,2.88]
[1760923964623,2.64,186.15,185.98,2.88]
[1760923965933,2.64,186.12,185.98,2.88]
[1760923966737,7.474,186.12,186.0,4.837]
[1760923966939,7.474,186.12,186.01,2.88]
[1760923967634,2.83,186.09,186.01,2.88]
[1760923971833,2.83,186.09,186.01,7.7169]
[1760923972033,2.83,186.09,186.01,2.88]
[1760923972339,2.83,186.07,185.95,2.85]
[1760923974038,2.83,186.07,185.99,7.6873]
[1760923974237,2.83,186.07,185.99,2.85]
[1760923977136,4.90940259,186.07,185.99,2.85]
[1760923980446,2.83,186.04,185.96,2.85]
[1760923981840,2.83,186.02,185.94,45.32]
[1760923982039,2.83,186.0,185.94,45.32]
[1760923982840,2.83,186.0,185.93,2.85]
[1760923983248,2.07940259,185.97,185.89,2.85]
[1760923983445,2.83,185.96,185.89,2.85]
[1760923983644,2.07940259,185.95,185.89,2.85]
[1760923984350,2.07940259,185.95,185.86,45.24]
[1760923984351,2.07940259,185.93,185.86,50.0808]
[1760923984644,2.83,185.94,185.86,47.31940259]
[1760923984838,2.83,185.94,185.87,2.85]
[1760923985845,2.83,185.94,185.87,7.6902]
[1760923986045,2.83,185.94,185.87,2.85]
[1760923986241,2.07940259,185.93,185.86,45.24]
[1760923987642,6.17955278,185.93,185.86,45.24]
[1760923987846,2.07940259,185.93,185.83,4.92940259]
[1760923988047,6.93046746,185.92,185.83,4.92940259]
[1760923988246,2.83,185.92,185.83,4.92940259]
[1760923988848,2.07940259,185.91,185.83,4.92940259]
[1760923989051,2.07940259,185.91,185.83,2.85]
[1760923989353,2.83,185.92,185.84,4.8412]
[1760923989750,2.83,185.9,185.83,4.92940259]
[1760923990453,2.83,185.9,185.83,9.77090259]
[1760923991049,2.83,185.9,185.86,2.07940259]
[1760923991557,2.83,185.9,185.86,4.92940259]
[1760923991854,2.83,185.94,185.86,4.92940259]
[1760923992050,2.9,185.92,185.88,2.07940259]
[1760923992254,4.10458213,185.91,185.88,2.07940259]
[1760923992449,4.10458213,185.9,185.88,2.07940259]
[1760923992650,2.9,185.92,185.88,2.07940259]
[1760923992952,2.9,185.89,185.86,2.07940259]
[1760923993450,2.9,185.93,185.86,4.74940259]
[1760923993650,7.00884186,185.92,185.88,4.74940259]
[1760923993956,4.10884186,185.91,185.88,4.74940259]
[1760923994154,4.10884186,185.9,185.88,4.74940259]
[1760923994351,2.9,185.92,185.88,4.74940259]
[1760923994546,4.11113872,185.91,185.88,2.07940259]
[1760923994756,7.01113872,185.9,185.86,2.07940259]
[1760923994955,4.11113872,185.89,185.86,4.74940259]
[1760923995255,2.9,185.9,185.86,4.74940259]
[1760923995455,4.12772222,185.89,185.87,2.67]
[1760923995655,2.9,185.91,185.87,2.67]
[1760923995856,4.12770252,185.9,185.87,2.67]
[1760923996058,4.12770252,185.89,185.87,2.67]
[1760923996257,4.13017274,185.88,185.87,2.67]
[1760923997452,7.83938509,185.96,185.87,2.63]
[1760923997752,5.00938509,185.93,185.87,2.63]
[1760923997958,2.83,185.91,185.87,2.63]
[1760923998157,4.13235097,185.9,185.87,2.63]
[1760923998357,4.13235097,185.89,185.87,2.63]
[1760923998557,4.13235097,185.88,185.87,2.63]
[1760923999158,4.13235097,185.88,185.86,4.70940259]
[1760923999360,2.83,185.9,185.86,4.70940259]
[1760923999557,4.13762829,185.89,185.86,4.70940259]
[1760923999857,4.13762829,185.88,185.86,4.70940259]
[1760924000057,2.83,185.9,185.87,2.63]
[1760924000251,4.13760854,185.89,185.87,2.63]
[1760924000451,4.13760854,185.88,185.87,2.63]
[1760924000657,4.13760854,185.88,185.84,2.63]
[1760924000856,2.83,185.91,185.85,2.07940259]
[1760924001055,2.83,185.89,185.85,4.70940259]
[1760924001249,4.13776679,185.88,185.85,4.70940259]
[1760924001449,2.83,185.89,185.85,4.70940259]
[1760924001755,2.83,185.87,185.83,6.92090259]
[1760924001953,6.9683029,185.86,185.83,2.07940259]
[1760924002149,4.13865037,185.85,185.79,47.87]
[1760924002354,6.96866854,185.84,185.8,4.70940259]
[1760924002658,4.13866854,185.83,185.8,4.70940259]
[1760924002957,2.83,185.84,185.8,4.70940259]
[1760924002958,4.13903708,185.82,185.8,4.70940259]
[1760924003158,2.83,185.84,185.8,4.70940259]
[1760924003456,4.13752193,185.83,185.8,4.70940259]
[1760924003662,4.13752193,185.82,185.8,2.07940259]
[1760924003850,2.83,185.83,185.8,2.07940259]
[1760924004054,4.13756456,185.82,185.8,2.07940259]
[1760924004250,2.83,185.85,185.77,2.63]
[1760924004456,2.83,185.83,185.77,2.63]
[1760924004653,2.83,185.81,185.77,2.63]
[1760924004851,2.83,185.83,185.75,111.13605261]
[1760924005056,4.13650628,185.82,185.75,111.13605261]
[1760924005253,4.13637711,185.81,185.75,109.05665002]
[1760924005460,2.83,185.79,185.74,2.07940259]
[1760924005657,2.83,185.78,185.74,2.07940259]
[1760924005857,6.92120259,185.82,185.72,47.85]
[1760924006163,2.83,185.8,185.73,2.07940259]
[1760924006362,4.13471607,185.79,185.73,2.07940259]
[1760924006664,2.83,185.8,185.73,2.07940259]
[1760924006853,4.1324751,185.79,185.73,2.07940259]
[1760924007058,2.83,185.8,185.73,2.07940259]
[1760924007259,2.83,185.78,185.72,45.22]
[1760924007865,2.83,185.78,185.71,2.07940259]
[1760924008466,2.83,185.78,185.69,2.63]
[1760924008670,4.12934989,185.77,185.7,2.07940259]
[1760924008959,2.83,185.78,185.7,2.07940259]
[1760924009162,4.12934932,185.77,185.73,2.63]
[1760924009361,4.12722407,185.81,185.74,2.07940259]
[1760924009669,2.83,185.79,185.73,2.63]
[1760924009960,6.95722407,185.78,185.73,2.63]
[1760924010163,2.83,185.81,185.73,2.63]
[1760924010359,4.12676993,185.8,185.73,4.70940259]
[1760924010560,4.12676993,185.79,185.73,4.70940259]
[1760924010760,2.83,185.81,185.75,2.07940259]
[1760924010963,6.95668635,185.8,185.75,4.70940259]
[1760924011164,20.82405662,185.84,185.75,4.70940259]
[1760924011369,2.83,185.79,185.75,4.70940259]
[1760924011571,4.12623254,185.82,185.75,2.07940259]
[1760924011770,6.92100259,185.83,185.71,4.70940259]
[1760924011771,9.03563513,185.81,185.71,4.70940259]
[1760924011970,6.95623254,185.8,185.71,4.70940259]
[1760924012166,4.12623254,185.79,185.71,4.70940259]
[1760924012365,2.83,185.8,185.71,4.70940259]
[1760924012570,4.12601023,185.79,185.71,4.70940259]
[1760924012761,2.83,185.8,185.71,4.70940259]
[1760924012962,4.12601023,185.79,185.71,4.70940259]
[1760924013163,4.12669772,185.79,185.71,4.70940259]
[1760924013671,6.95533036,185.8,185.71,4.70940259]
[1760924014067,6.95533036,185.8,185.73,2.07940259]
[1760924014472,6.95533036,185.8,185.73,4.70940259]
[1760924015367,2.83,185.8,185.73,4.70940259]
[1760924015670,2.83,185.79,185.73,2.07940259]
[1760924016268,2.83,185.79,185.71,2.07940259]
[1760924018076,11.79963856,185.79,185.71,2.07940259]
[1760924018276,7.6726,185.79,185.71,2.07940259]
[1760924019175,7.6726,185.79,185.72,2.63]
[1760924019678,2.83,185.79,185.73,6.92350259]
[1760924019882,2.83,185.79,185.75,2.07940259]
[1760924020268,2.83,185.79,185.75,4.70940259]
[1760924021190,2.83,185.79,185.75,2.07940259]
[1760924021379,2.83,185.79,185.76,2.63]
[1760924021773,2.83,185.82,185.76,2.63]
[1760924021979,4.13357737,185.81,185.76,2.63]
[1760924022178,2.83,185.82,185.78,2.63]
[1760924022379,4.13632329,185.81,185.78,2.63]
[1760924022574,2.83,185.82,185.78,2.63]
[1760924022790,4.13596007,185.81,185.78,2.63]
[1760924022982,2.83,185.86,185.8,2.63]
[1760924023286,4.13843682,185.85,185.83,2.07940259]